[Event "DVM U10 2024"]
[Site "Duesseldorf"]
[Date "2024.12.28"]
[Round "6"]
[White "Ju, Eric Zirui"]
[Black "Peters, Leopold"]
[Result "0-1"]
[ECO "C00"]
[WhiteElo "1126"]
[BlackElo "1701"]
[Annotator "NA RC"]
[PlyCount "142"]
[EventDate "2024.12.23"]
[EventType "team-tourn"]
[EventRounds "7"]
[EventCountry "GER"]
[SourceTitle "playchess.com"]
[Source "ChessBase"]
[SourceQuality "1"]
[TimeControl "3300+5"]

1. e4 {[%emt 0:00:01]} e6 {[%emt 0:00:05]} 2. Nf3 {[%emt 0:00:09]} d5 {[%emt 0:00:06]} 3. d3 {[%emt 0:00:09]} Nf6 {[%emt 0:00:38]} 4. Bg5 {[%emt 0:00:27]} dxe4 {[%emt 0:00:56]} 5. Bxf6 {[%emt 0:00:29]} Qxf6 {[%emt 0:00:14]} 6. dxe4 {[%emt 0:00:23]} Qxb2 {[%emt 0:00:27]} 7. Nbd2 {[%emt 0:00:20]} Bd6 {[%emt 0:02:27]} 8. Bd3 {[%emt 0:04:13]} Qb6 {[%emt 0:02:45]} 9. O-O {[%emt 0:00:40]} O-O {[%emt 0:01:28]} 10. Rb1 {[%emt 0:01:47]} Qc5 {[%emt 0:02:52]} 11. e5 {[%emt 0:01:24]} Be7 {[%emt 0:00:29]} 12. Ne4 {[%emt 0:00:40]} Qc6 {[%emt 0:02:26]} 13. Bb5 {[%emt 0:01:19]} Qxe4 {[%emt 0:00:10]} 14. c4 {[%emt 0:00:56]} a6 {[%emt 0:03:35]} 15. Re1 {[%emt 0:01:04]} Qf4 {[%emt 0:01:37]} 16. Ba4 {[%emt 0:01:59]} Qxc4 {[%emt 0:00:53]} 17. Bb3 {[%emt 0:00:28]} Qf4 {[%emt 0:00:24]} 18. Rc1 {[%emt 0:01:07]} c5 {[%emt 0:01:57]} 19. Rc4 {[%emt 0:00:46]} Qh6 {[%emt 0:00:36]} 20. Ree4 {[%emt 0:01:34]} g6 {[%emt 0:00:55]} 21. h3 {[%emt 0:02:15]} b5 {[%emt 0:01:31]} 22. Rc1 {[%emt 0:00:34]} Bb7 {[%emt 0:00:20]} 23. Re3 {[%emt 0:00:41]} Rd8 {[%emt 0:00:32]} 24. Qf1 {[%emt 0:02:56]} c4 {[%emt 0:04:40]} 25. Bc2 {[%emt 0:00:47]} Bg5 {[%emt 0:02:49]} 26. Nxg5 Qxg5 {[%emt 0:00:16]} 27. Be4 {[%emt 0:01:54]} Bxe4 {[%emt 0:01:11]} 28. Rxe4 {[%emt 0:00:12]} Nc6 {[%emt 0:00:20]} 29. Rce1 {[%emt 0:00:47]} Rd2 {[%emt 0:01:06]} 30. f4 {[%emt 0:00:47]} Qe7 {[%emt 0:01:59]} 31. a4 {[%emt 0:02:21]} Qc5+ {[%emt 0:00:55]} 32. Kh1 {[%emt 0:00:23]} Qf2 {[%emt 0:00:28]} 33. Qxf2 {[%emt 0:00:38]} Rxf2 {[%emt 0:00:10]} 34. axb5 {[%emt 0:00:10]} axb5 {[%emt 0:00:13]} 35. Rb1 {[%emt 0:00:46]} Rd8 {[%emt 0:01:31]} 36. Rxb5 {[%emt 0:01:37]} Rd4 {[%emt 0:00:22]} 37. Re3 {[%emt 0:02:18]} Rfxf4 {[%emt 0:00:49]} 38. Rc3 {[%emt 0:01:14]} Rd5 {[%emt 0:00:43]} 39. Rb6 {[%emt 0:00:55]} Nxe5 {[%emt 0:00:11]} 40. Rb8+ {[%emt 0:00:46]} Kg7 {[%emt 0:00:41]} 41. Rc8 {[%emt 0:00:26]} Kf6 {[%emt 0:00:44]} 42. g3 {[%emt 0:00:26]} Rf2 {[%emt 0:02:00]} 43. Kg1 {[%emt 0:00:20]} Rdd2 {[%emt 0:00:46]} 44. Ra8 {[%emt 0:01:30]} Nf3+ {[%emt 0:00:15]} 45. Rxf3+ {[%emt 0:00:13]} Rxf3 {[%emt 0:00:09]} 46. Rc8 {[%emt 0:00:42]} c3 {[%emt 0:00:18]} 47. g4 {[%emt 0:00:26]} Rff2 {[%emt 0:00:48]} 48. Rxc3 {[%emt 0:00:35]} Rh2 {[%emt 0:00:34]} 49. Rf3+ {[%emt 0:00:33]} Ke7 {[%emt 0:00:16]} 50. Rg3 {[%emt 0:00:32]} Rhg2+ {[%emt 0:00:21]} 51. Rxg2 {[%emt 0:00:23]} Rxg2+ {[%emt 0:00:09]} 52. Kxg2 {[%emt 0:00:10]} Kd6 {[%emt 0:00:07]} 53. Kf3 {[%emt 0:00:13]} Kd5 {[%emt 0:00:14]} 54. Kf4 {[%emt 0:00:50]} Kd4 {[%emt 0:01:57]} 55. Kf3 {[%emt 0:00:20]} e5 {[%emt 0:00:23]} 56. Kf2 {[%emt 0:00:36]} e4 {[%emt 0:00:18]} 57. Ke2 {[%emt 0:00:17]} g5 {[%emt 0:00:08]} 58. Kd2 {[%emt 0:00:21]} e3+ {[%emt 0:00:13]} 59. Ke2 {[%emt 0:00:33]} Ke4 {[%emt 0:00:03]} 60. Ke1 {[%emt 0:00:53]} Kd3 {[%emt 0:00:05]} 61. Kd1 {[%emt 0:00:20]} e2+ {[%emt 0:00:11]} 62. Ke1 {[%emt 0:00:24]} f6 {[%emt 0:00:11]} 63. Kf2 {[%emt 0:00:37]} Kd2 {[%emt 0:00:04]} 64. Kg2 {[%emt 0:00:45]} e1=Q {[%emt 0:00:07]} 65. Kf3 {[%emt 0:00:44]} Qe3+ {[%emt 0:00:25]} 66. Kg2 {[%emt 0:00:28]} Qf4 {[%emt 0:00:40]} 67. Kg1 {[%emt 0:00:31]} Ke2 {[%emt 0:00:15]} 68. Kg2 {[%emt 0:00:06]} Qf3+ {[%emt 0:00:27]} 69. Kg1 {[%emt 0:00:16]} Qg3+ {[%emt 0:00:19]} 70. Kh1 {[%emt 0:00:05]} Kf2 {[%emt 0:00:04]} 71. h4 {[%emt 0:00:02]} Qg2# {[%emt 0:00:02]} 0-1

[Event "DVM U10 2024"]
[Site "Duesseldorf"]
[Date "2024.12.28"]
[Round "6"]
[White "Dres, Friedrich"]
[Black "Bentele, Otto"]
[Result "1-0"]
[ECO "C54"]
[WhiteElo "1123"]
[BlackElo "1522"]
[Annotator "NA RC"]
[PlyCount "55"]
[EventDate "2024.12.23"]
[EventType "team-tourn"]
[EventRounds "7"]
[EventCountry "GER"]
[SourceTitle "playchess.com"]
[Source "ChessBase"]
[SourceQuality "1"]
[TimeControl "3300+5"]

1. e4 {[%emt 0:00:01]} e5 {[%emt 0:00:03]} 2. Nf3 {[%emt 0:00:08]} Nc6 {[%emt 0:00:11]} 3. Bc4 {[%emt 0:00:05]} Bc5 {[%emt 0:00:12]} 4. c3 {[%emt 0:00:05]} Nf6 {[%emt 0:00:10]} 5. d4 {[%emt 0:00:09]} exd4 {[%emt 0:00:07]} 6. e5 {[%emt 0:00:06]} d5 {[%emt 0:00:14]} 7. exf6 {[%emt 0:01:13]} dxc4 {[%emt 0:00:30]} 8. fxg7 {[%emt 0:00:14]} Rg8 {[%emt 0:00:12]} 9. O-O {[%emt 0:00:12]} Rxg7 {[%emt 0:00:21]} 10. cxd4 {[%emt 0:00:14]} Be7 {[%emt 0:00:17]} 11. d5 {[%emt 0:00:27]} Nb8 {[%emt 0:01:20]} 12. Re1 {[%emt 0:00:13]} Nd7 {[%emt 0:00:21]} 13. Bg5 {[%emt 0:00:08]} f6 {[%emt 0:00:34]} 14. Bf4 {[%emt 0:00:32]} Kf7 {[%emt 0:00:38]} 15. d6 {[%emt 0:00:28]} Bxd6 {[%emt 0:00:36]} 16. Qd5+ {[%emt 0:00:36]} Kf8 {[%emt 0:00:46]} 17. Bh6 {[%emt 0:00:13]} Nb6 {[%emt 0:00:30]} 18. Bxg7+ {[%emt 0:00:11]} Kxg7 {[%emt 0:01:15]} 19. Qh5 {[%emt 0:00:40]} Bb4 {[%emt 0:00:43]} 20. Nc3 {[%emt 0:00:18]} Bd7 {[%emt 0:02:25]} 21. Rad1 {[%emt 0:00:36]} Bd6 {[%emt 0:06:02]} 22. Nd4 {[%emt 0:01:22]} Qc8 {[%emt 0:01:28]} 23. h3 {[%emt 0:00:33]} c5 {[%emt 0:00:54]} 24. Ndb5 {[%emt 0:00:30]} Be5 {[%emt 0:01:48]} 25. f4 {[%emt 0:01:48]} Be8 {[%emt 0:02:30]} 26. Qf3 {[%emt 0:00:28]} Kh8 {[%emt 0:05:18]} 27. fxe5 {[%emt 0:00:14]} fxe5 {[%emt 0:01:17]} 28. Qf8# {[%emt 0:00:36]} 1-0

[Event "DVM U10 2024"]
[Site "Duesseldorf"]
[Date "2024.12.28"]
[Round "6"]
[White "Qu, Mengdi"]
[Black "Luo, Milo"]
[Result "1-0"]
[ECO "B70"]
[WhiteElo "1111"]
[BlackElo "1083"]
[Annotator "NA RC"]
[PlyCount "103"]
[EventDate "2024.12.23"]
[EventType "team-tourn"]
[EventRounds "7"]
[EventCountry "GER"]
[SourceTitle "playchess.com"]
[Source "ChessBase"]
[SourceQuality "1"]
[TimeControl "3300+5"]

1. e4 {[%emt 0:00:03]} c5 {[%emt 0:00:16]} 2. Nf3 {[%emt 0:00:09]} d6 {[%emt 0:00:27]} 3. d4 {[%emt 0:00:14]} cxd4 {[%emt 0:00:33]} 4. Nxd4 {[%emt 0:00:21]} Nf6 {[%emt 0:00:09]} 5. Nc3 {[%emt 0:00:15]} g6 {[%emt 0:00:39]} 6. Bc4 {[%emt 0:00:41]} e6 {[%emt 0:02:18]} 7. Qd3 {[%emt 0:01:27]} Bg7 {[%emt 0:01:02]} 8. Be3 {[%emt 0:01:29]} O-O {[%emt 0:04:06]} 9. O-O-O {[%emt 0:04:33]} d5 {[%emt 0:06:38]} 10. Nf3 {[%emt 0:03:47]} Nc6 {[%emt 0:04:05]} 11. exd5 {[%emt 0:01:18]} exd5 {[%emt 0:07:01]} 12. Nxd5 {[%emt 0:00:52]} Nxd5 {[%emt 0:01:42]} 13. Bxd5 {[%emt 0:01:19]} Nb4 {[%emt 0:02:59]} 14. Bxf7+ {[%emt 0:01:14]} Kxf7 {[%emt 0:01:03]} 15. Qxd8 {[%emt 0:01:00]} Rxd8 {[%emt 0:02:22]} 16. Rxd8 {[%emt 0:00:10]} Nxc2 {[%emt 0:01:07]} 17. Rhd1 {[%emt 0:02:09]} Nxe3 {[%emt 0:01:34]} 18. fxe3 {[%emt 0:00:48]} Bf6 {[%emt 0:00:51]} 19. R1d7+ {[%emt 0:02:19]} Ke6 {[%emt 0:02:13]} 20. Nd4+ {[%emt 0:01:08]} Ke5 {[%emt 0:00:45]} 21. Re8+ {[%emt 0:00:32]} Be7 {[%emt 0:01:15]} 22. Rexe7+ {[%emt 0:00:07]} Kf6 {[%emt 0:00:21]} 23. Re8 {[%emt 0:01:06]} h5 {[%emt 0:01:50]} 24. Rdd8 {[%emt 0:00:20]} a5 {[%emt 0:01:29]} 25. Rxc8 {[%emt 0:00:12]} Ra6 {[%emt 0:00:11]} 26. Re6+ {[%emt 0:00:42]} Rxe6 {[%emt 0:00:16]} 27. Nxe6 {[%emt 0:00:07]} Kxe6 {[%emt 0:00:07]} 28. Rb8 {[%emt 0:00:49]} Kd5 {[%emt 0:00:33]} 29. Rxb7 {[%emt 0:00:21]} Kc6 {[%emt 0:00:32]} 30. Rg7 {[%emt 0:00:12]} Kd5 {[%emt 0:01:03]} 31. Rxg6 {[%emt 0:00:10]} Ke4 {[%emt 0:00:15]} 32. Rg5 {[%emt 0:00:25]} h4 {[%emt 0:00:14]} 33. Rxa5 {[%emt 0:00:13]} Kxe3 {[%emt 0:00:12]} 34. b4 {[%emt 0:00:07]} Kf2 {[%emt 0:00:10]} 35. Rh5 {[%emt 0:00:17]} Kxg2 {[%emt 0:00:17]} 36. b5 {[%emt 0:00:11]} h3 {[%emt 0:00:15]} 37. b6 {[%emt 0:00:07]} Kxh2 {[%emt 0:00:09]} 38. Rxh3+ {[%emt 0:00:05]} Kxh3 {[%emt 0:00:06]} 39. b7 {[%emt 0:00:06]} Kg4 {[%emt 0:00:07]} 40. b8=Q {[%emt 0:00:11]} Kf5 {[%emt 0:00:05]} 41. Qe8 {[%emt 0:00:13]} Kf4 {[%emt 0:00:13]} 42. Qe6 {[%emt 0:00:13]} Kf3 {[%emt 0:00:16]} 43. Qe5 {[%emt 0:00:07]} Kf2 {[%emt 0:00:16]} 44. Qe4 {[%emt 0:00:05]} Kf1 {[%emt 0:00:55]} 45. Qe3 {[%emt 0:00:14]} Kg2 {[%emt 0:00:18]} 46. Qf4 {[%emt 0:00:07]} Kg1 {[%emt 0:00:08]} 47. Qf3 {[%emt 0:00:07]} Kh2 {[%emt 0:00:09]} 48. Qg4 {[%emt 0:00:04]} Kh1 {[%emt 0:00:12]} 49. Kd2 {[%emt 0:00:10]} Kh2 {[%emt 0:00:10]} 50. Ke2 {[%emt 0:00:06]} Kh1 {[%emt 0:00:05]} 51. Kf2 {[%emt 0:00:39]} Kh2 {[%emt 0:00:04]} 52. Qh4# {[%emt 0:00:16]} 1-0

[Event "DVM U10 2024"]
[Site "Duesseldorf"]
[Date "2024.12.28"]
[Round "6"]
[White "Haberger, Nino"]
[Black "Ragavendra Prasanna, Shyam Sundar"]
[Result "1/2-1/2"]
[ECO "C50"]
[WhiteElo "1098"]
[BlackElo "1524"]
[Annotator "NA RC"]
[PlyCount "110"]
[EventDate "2024.12.23"]
[EventType "team-tourn"]
[EventRounds "7"]
[EventCountry "GER"]
[SourceTitle "playchess.com"]
[Source "ChessBase"]
[SourceQuality "1"]
[TimeControl "3300+5"]

1. e4 {[%emt 0:00:02]} e5 {[%emt 0:00:05]} 2. Bc4 {[%emt 0:00:06]} Nf6 {[%emt 0:00:08]} 3. Nc3 {[%emt 0:00:07]} Nc6 {[%emt 0:00:10]} 4. Nf3 {[%emt 0:00:07]} Bc5 {[%emt 0:00:12]} 5. O-O {[%emt 0:00:27]} d6 6. d3 {[%emt 0:00:00]} Bg4 {[%emt 0:00:15]} 7. Be3 {[%emt 0:00:08]} Nd4 {[%emt 0:00:14]} 8. Bxd4 {[%emt 0:00:14]} exd4 {[%emt 0:00:11]} 9. Nd5 {[%emt 0:00:18]} c6 {[%emt 0:00:33]} 10. Nxf6+ {[%emt 0:00:10]} Qxf6 {[%emt 0:00:14]} 11. h3 {[%emt 0:00:45]} Bh5 {[%emt 0:00:08]} 12. Re1 {[%emt 0:00:18]} O-O-O {[%emt 0:00:30]} 13. a3 {[%emt 0:00:11]} Rhg8 {[%emt 0:01:35]} 14. b4 {[%emt 0:00:11]} Bb6 {[%emt 0:00:12]} 15. a4 {[%emt 0:00:13]} g5 {[%emt 0:00:14]} 16. a5 {[%emt 0:00:13]} Bc7 {[%emt 0:00:18]} 17. a6 {[%emt 0:00:43]} b5 {[%emt 0:00:13]} 18. Bb3 {[%emt 0:00:13]} Qg6 {[%emt 0:00:59]} 19. g4 {[%emt 0:00:41]} Bxg4 {[%emt 0:00:23]} 20. hxg4 {[%emt 0:00:11]} h5 {[%emt 0:00:16]} 21. Nh2 {[%emt 0:00:26]} Rh8 {[%emt 0:00:35]} 22. Qf3 {[%emt 0:00:28]} Rdf8 {[%emt 0:00:41]} 23. Qf5+ {[%emt 0:00:24]} Qxf5 {[%emt 0:00:29]} 24. exf5 {[%emt 0:00:19]} d5 {[%emt 0:00:30]} 25. Kg2 {[%emt 0:02:19]} f6 {[%emt 0:01:15]} 26. Re6 {[%emt 0:01:50]} hxg4 {[%emt 0:00:29]} 27. Nxg4 {[%emt 0:00:26]} Rh4 {[%emt 0:00:33]} 28. f3 {[%emt 0:00:37]} Kd7 {[%emt 0:00:40]} 29. Rae1 {[%emt 0:00:56]} Rf7 {[%emt 0:00:38]} 30. Rxf6 {[%emt 0:01:40]} Rxg4+ {[%emt 0:00:25]} 31. fxg4 {[%emt 0:00:16]} Rxf6 {[%emt 0:00:15]} 32. Rh1 {[%emt 0:00:33]} Rf7 {[%emt 0:00:42]} 33. Rh5 {[%emt 0:00:10]} Bd8 {[%emt 0:00:12]} 34. Kf3 {[%emt 0:00:23]} Re7 {[%emt 0:00:18]} 35. Kf2 {[%emt 0:00:18]} Re3 {[%emt 0:02:22]} 36. Rh7+ {[%emt 0:00:15]} Re7 {[%emt 0:01:34]} 37. Rh6 {[%emt 0:00:45]} Rf7 {[%emt 0:01:04]} 38. Rg6 {[%emt 0:00:57]} Rh7 {[%emt 0:01:10]} 39. Kg2 {[%emt 0:00:58]} Ke7 {[%emt 0:01:02]} 40. Rxg5 {[%emt 0:00:26]} Kf7 {[%emt 0:00:36]} 41. Rh5 {[%emt 0:00:11]} Rxh5 {[%emt 0:00:24]} 42. gxh5 {[%emt 0:00:08]} Kf6 {[%emt 0:00:15]} 43. Kg3 {[%emt 0:00:29]} Kxf5 {[%emt 0:00:41]} 44. h6 {[%emt 0:00:14]} Kg6 {[%emt 0:00:32]} 45. Kf4 Bc7+ {[%emt 0:00:00]} 46. Kg4 {[%emt 0:00:20]} Be5 {[%emt 0:00:21]} 47. h7 {[%emt 0:00:23]} Bf6 {[%emt 0:01:38]} 48. Kf4 {[%emt 0:00:21]} Bg7 {[%emt 0:00:37]} 49. Ba2 {[%emt 0:00:17]} Bf6 {[%emt 0:00:51]} 50. Bb1 {[%emt 0:00:35]} Bg7 {[%emt 0:00:26]} 51. Ba2 {[%emt 0:01:17]} Bf6 {[%emt 0:00:40]} 52. Bb3 {[%emt 0:01:01]} Bg7 {[%emt 0:00:13]} 53. Ba2 {[%emt 0:00:19]} Bf6 {[%emt 0:00:05]} 54. Bb1 {[%emt 0:00:14]} Bg7 {[%emt 0:00:10]} 55. Ba2 {[%emt 0:00:14]} Bf6 {[%emt 0:01:10]} 1/2-1/2

[Event "DVM U10 2024"]
[Site "Duesseldorf"]
[Date "2024.12.28"]
[Round "6"]
[White "Kirchgessner, Thomas"]
[Black "Frikel, Konstantin"]
[Result "0-1"]
[ECO "C54"]
[WhiteElo "1094"]
[BlackElo "1199"]
[Annotator "NA RC"]
[PlyCount "124"]
[EventDate "2024.12.23"]
[EventType "team-tourn"]
[EventRounds "7"]
[EventCountry "GER"]
[SourceTitle "playchess.com"]
[Source "ChessBase"]
[SourceQuality "1"]
[TimeControl "3300+5"]

1. e4 {[%emt 0:00:02]} e5 {[%emt 0:00:06]} 2. Nf3 {[%emt 0:00:03]} Nc6 {[%emt 0:00:06]} 3. Bc4 {[%emt 0:00:03]} Bc5 {[%emt 0:00:12]} 4. c3 {[%emt 0:00:04]} Nf6 {[%emt 0:00:28]} 5. d3 {[%emt 0:00:05]} d5 {[%emt 0:00:15]} 6. exd5 {[%emt 0:01:13]} Nxd5 {[%emt 0:00:35]} 7. b4 {[%emt 0:00:44]} Bb6 {[%emt 0:00:18]} 8. a4 {[%emt 0:00:07]} a5 {[%emt 0:00:10]} 9. b5 {[%emt 0:00:14]} Nce7 {[%emt 0:00:18]} 10. Nxe5 {[%emt 0:00:34]} Nxc3 {[%emt 0:02:20]} 11. Nxc3 {[%emt 0:00:27]} Qd4 {[%emt 0:00:10]} 12. O-O {[%emt 0:04:41]} Qxe5 {[%emt 0:01:29]} 13. Bd2 {[%emt 0:00:21]} c6 {[%emt 0:00:46]} 14. Qf3 {[%emt 0:01:05]} O-O {[%emt 0:00:34]} 15. Rfe1 {[%emt 0:00:56]} Qd6 {[%emt 0:00:46]} 16. Ne4 {[%emt 0:00:32]} Qg6 {[%emt 0:01:01]} 17. h3 {[%emt 0:01:18]} Nf5 {[%emt 0:01:24]} 18. Ng5 {[%emt 0:03:54]} Nd4 {[%emt 0:02:56]} 19. Bxf7+ {[%emt 0:05:21]} Kh8 {[%emt 0:02:01]} 20. Bxg6 {[%emt 0:01:44]} Nxf3+ {[%emt 0:00:00]} 21. Nxf3 {[%emt 0:01:07]} hxg6 {[%emt 0:00:00]} 22. Re7 {[%emt 0:01:11]} Bc5 {[%emt 0:01:11]} 23. Re2 {[%emt 0:03:24]} Bf5 {[%emt 0:01:23]} 24. d4 {[%emt 0:01:06]} Bb6 {[%emt 0:00:56]} 25. Rae1 {[%emt 0:02:12]} Bxh3 {[%emt 0:00:44]} 26. Ng5 {[%emt 0:01:50]} Bg4 {[%emt 0:00:44]} 27. Re4 {[%emt 0:01:03]} Bf5 {[%emt 0:00:47]} 28. Rh4+ {[%emt 0:00:18]} Kg8 {[%emt 0:01:05]} 29. g4 {[%emt 0:00:33]} Bd3 {[%emt 0:03:01]} 30. Re3 {[%emt 0:00:52]} Bxd4 {[%emt 0:00:19]} 31. Rxd3 {[%emt 0:00:51]} Bxf2+ {[%emt 0:00:30]} 32. Kg2 {[%emt 0:01:11]} Bxh4 {[%emt 0:00:14]} 33. Nf3 {[%emt 0:00:55]} Rad8 {[%emt 0:01:03]} 34. Rxd8 {[%emt 0:01:03]} Rxd8 {[%emt 0:00:17]} 35. Bxa5 {[%emt 0:00:46]} Ra8 {[%emt 0:01:26]} 36. Bc3 {[%emt 0:00:37]} Bf6 {[%emt 0:00:23]} 37. Bd2 {[%emt 0:02:47]} Rxa4 {[%emt 0:00:10]} 38. g5 {[%emt 0:00:12]} Be7 {[%emt 0:03:47]} 39. bxc6 {[%emt 0:00:20]} bxc6 {[%emt 0:00:23]} 40. Ne5 {[%emt 0:00:59]} Ra2 {[%emt 0:00:16]} 41. Nf3 {[%emt 0:00:17]} Bxg5 {[%emt 0:00:21]} 42. Nxg5 {[%emt 0:00:09]} Rxd2+ {[%emt 0:00:08]} 43. Kf3 {[%emt 0:00:10]} c5 {[%emt 0:00:21]} 44. Ke3 {[%emt 0:00:10]} Rd8 {[%emt 0:00:01]} 45. Ne6 {[%emt 0:00:28]} Re8 {[%emt 0:00:17]} 46. Ke4 {[%emt 0:00:25]} Rxe6+ {[%emt 0:00:08]} 47. Kd5 {[%emt 0:00:01]} Rc6 {[%emt 0:00:10]} 48. Kc4 {[%emt 0:00:18]} g5 {[%emt 0:00:07]} 49. Kd3 {[%emt 0:00:09]} c4+ {[%emt 0:00:06]} 50. Kc2 {[%emt 0:00:10]} g4 {[%emt 0:00:04]} 51. Kc3 {[%emt 0:00:10]} g3 {[%emt 0:00:08]} 52. Kb4 {[%emt 0:00:10]} g2 {[%emt 0:00:16]} 53. Kb5 {[%emt 0:00:12]} Rf6 {[%emt 0:00:08]} 54. Kc5 {[%emt 0:00:20]} g1=Q+ {[%emt 0:00:09]} 55. Kb4 {[%emt 0:00:05]} Rb6+ {[%emt 0:00:32]} 56. Kxc4 {[%emt 0:01:11]} Qc1+ {[%emt 0:00:14]} 57. Kd5 {[%emt 0:00:05]} Rb2 {[%emt 0:00:05]} 58. Ke4 {[%emt 0:00:17]} Qd1 {[%emt 0:00:07]} 59. Kf4 {[%emt 0:00:12]} Qe1 {[%emt 0:00:06]} 60. Kg5 {[%emt 0:00:13]} Qf1 {[%emt 0:00:06]} 61. Kg6 {[%emt 0:00:19]} Rg2+ {[%emt 0:00:31]} 62. Kh5 {[%emt 0:00:07]} Qh1# {[%emt 0:00:07]} 0-1

[Event "DVM U10 2024"]
[Site "Duesseldorf"]
[Date "2024.12.28"]
[Round "6"]
[White "Golnik, Rasmus"]
[Black "Schonlau, Leopold"]
[Result "1-0"]
[ECO "D40"]
[WhiteElo "1087"]
[BlackElo "1533"]
[Annotator "NA RC"]
[PlyCount "95"]
[EventDate "2024.12.23"]
[EventType "team-tourn"]
[EventRounds "7"]
[EventCountry "GER"]
[SourceTitle "playchess.com"]
[Source "ChessBase"]
[SourceQuality "1"]
[TimeControl "3300+5"]

1. d4 {[%emt 0:00:03]} d5 {[%emt 0:00:03]} 2. Nf3 {[%emt 0:00:06]} Nf6 {[%emt 0:00:38]} 3. e3 {[%emt 0:00:18]} c5 {[%emt 0:00:13]} 4. c4 {[%emt 0:00:49]} e6 {[%emt 0:00:17]} 5. Nc3 {[%emt 0:01:06]} Nc6 {[%emt 0:01:36]} 6. Bd3 {[%emt 0:00:22]} Bd7 {[%emt 0:00:44]} 7. O-O {[%emt 0:00:26]} Bd6 {[%emt 0:00:12]} 8. Re1 {[%emt 0:00:23]} O-O {[%emt 0:00:07]} 9. e4 {[%emt 0:01:05]} dxe4 {[%emt 0:00:39]} 10. Nxe4 {[%emt 0:00:38]} Be7 {[%emt 0:00:30]} 11. Nxc5 {[%emt 0:03:21]} Bxc5 {[%emt 0:01:18]} 12. dxc5 {[%emt 0:00:12]} Re8 {[%emt 0:00:23]} 13. Bg5 {[%emt 0:00:55]} h6 {[%emt 0:00:15]} 14. Bh4 {[%emt 0:00:35]} e5 {[%emt 0:00:21]} 15. Re2 {[%emt 0:03:43]} Bg4 {[%emt 0:00:29]} 16. Re3 {[%emt 0:02:25]} Nd4 {[%emt 0:01:13]} 17. Be2 {[%emt 0:01:04]} Nf5 {[%emt 0:01:46]} 18. Rd3 {[%emt 0:03:12]} Qe7 {[%emt 0:01:42]} 19. Bxf6 {[%emt 0:01:30]} Qxf6 {[%emt 0:00:44]} 20. Rd2 {[%emt 0:03:15]} Rad8 {[%emt 0:00:40]} 21. h3 {[%emt 0:07:52]} Bxf3 {[%emt 0:00:47]} 22. Bxf3 {[%emt 0:00:35]} Qg5 {[%emt 0:01:50]} 23. Rxd8 {[%emt 0:02:08]} Rxd8 {[%emt 0:00:06]} 24. Qe2 {[%emt 0:01:37]} Nd4 {[%emt 0:03:45]} 25. Qe4 {[%emt 0:02:01]} f5 {[%emt 0:00:28]} 26. Qxb7 {[%emt 0:01:37]} e4 {[%emt 0:00:18]} 27. Bd1 {[%emt 0:00:54]} a6 {[%emt 0:02:55]} 28. c6 {[%emt 0:02:18]} Nf3+ {[%emt 0:00:45]} 29. Kh1 {[%emt 0:00:48]} Nh4 {[%emt 0:01:31]} 30. g3 {[%emt 0:01:49]} Rd2 {[%emt 0:10:34]} 31. gxh4 {[%emt 0:03:10]} Qxh4 {[%emt 0:00:25]} 32. Qc8+ {[%emt 0:01:35]} Kh7 {[%emt 0:00:47]} 33. Qxf5+ {[%emt 0:00:06]} Kg8 {[%emt 0:00:18]} 34. Kg2 {[%emt 0:01:12]} e3 {[%emt 0:00:35]} 35. Qe6+ {[%emt 0:00:22]} Kh7 {[%emt 0:00:20]} 36. Qxe3 {[%emt 0:00:01]} Rd6 {[%emt 0:01:38]} 37. c7 {[%emt 0:00:12]} Rc6 {[%emt 0:00:18]} 38. Qd3+ {[%emt 0:00:09]} Kh8 {[%emt 0:00:41]} 39. Qd8+ {[%emt 0:00:15]} Qxd8 {[%emt 0:00:11]} 40. cxd8=Q+ {[%emt 0:00:08]} Kh7 {[%emt 0:00:04]} 41. Bc2+ {[%emt 0:00:01]} Rg6+ {[%emt 0:00:10]} 42. Bxg6+ {[%emt 0:00:04]} Kxg6 {[%emt 0:00:08]} 43. c5 {[%emt 0:00:01]} Kf7 {[%emt 0:00:14]} 44. c6 {[%emt 0:00:01]} Ke6 {[%emt 0:00:09]} 45. c7 {[%emt 0:00:03]} Ke5 {[%emt 0:00:06]} 46. c8=Q {[%emt 0:00:04]} Ke4 {[%emt 0:00:07]} 47. Qc5 {[%emt 0:00:05]} Kf4 {[%emt 0:00:13]} 48. Qdd4# {[%emt 0:00:04]} 1-0